bitfinex-derivatives/quotes_BTCF0:USTF0_20250330
["timestamp","ask_amount","ask_price","bid_price","bid_amount"]
[1743300915925,0.120262,83175.0,83174.0,0.28651003]
[1743300916116,0.13604732,83175.0,83174.0,0.28715003]
[1743300916320,0.25625768,83175.0,83174.0,0.00072]
[1743300916519,0.1202664,83172.0,83171.0,0.28651003]
[1743300916721,0.1202664,83172.0,83165.0,0.3569545]
[1743300916722,0.1202751,83166.0,83165.0,0.3569545]
[1743300917030,0.25386042,83166.0,83165.0,0.3575945]
[1743300917230,0.37408957,83166.0,83165.0,0.3575945]
[1743300917626,0.43708957,83166.0,83165.0,0.3575945]
[1743300917818,0.44922273,83166.0,83165.0,0.3575945]
[1743300919331,0.45322273,83166.0,83165.0,0.3575945]
[1743300920427,0.45722273,83166.0,83165.0,0.3575945]
[1743300920927,0.01510532,83164.0,83162.0,8e-05]
[1743300921234,0.1834794,83163.0,83162.0,0.00072]
[1743300921528,0.18467941,83163.0,83162.0,0.00072]
[1743300921732,0.30492157,83163.0,83162.0,0.00072]
[1743300922628,0.24172157,83163.0,83162.0,0.00072]
[1743300922927,0.35920157,83163.0,83162.0,0.00072]
[1743300923236,0.38940157,83163.0,83162.0,0.00072]
[1743300923633,0.39240157,83163.0,83162.0,0.00072]
[1743300923927,0.27492157,83163.0,83162.0,0.00072]
[1743300924133,0.24599941,83163.0,83162.0,0.1210008]
[1743300924628,0.12572001,83163.0,83162.0,0.1210008]
[1743300925119,0.24299941,83163.0,83162.0,0.1210008]
[1743300925325,0.00620001,83163.0,83162.0,0.1210008]
[1743300925738,0.005,83163.0,83162.0,0.1210008]
[1743300926233,0.00620001,83163.0,83162.0,0.1210008]
[1743300926930,0.005,83163.0,83162.0,0.1210008]
[1743300927433,0.17951603,83166.0,83165.0,0.1202765]
[1743300927635,0.11752,83176.0,83175.0,0.120262]
[1743300927636,0.22516226,83176.0,83175.0,0.120262]
[1743300927840,0.22516226,83176.0,83175.0,0.481702]
[1743300927841,0.34626286,83176.0,83175.0,0.481702]
[1743300929030,0.34826286,83176.0,83175.0,0.481702]
[1743300929429,0.34826286,83176.0,83175.0,0.36144]
[1743300929626,0.34826286,83176.0,83175.0,0.481702]
[1743300930031,0.34826286,83176.0,83175.0,0.547702]
[1743300930539,0.2426206,83176.0,83175.0,0.547702]
[1743300930721,0.2729206,83176.0,83175.0,0.547702]
[1743300931432,0.00484,83176.0,83175.0,0.547702]
[1743300931637,0.004,83176.0,83175.0,0.547702]
[1743300932337,0.1242606,83176.0,83175.0,0.547702]
[1743300932524,0.1251406,83176.0,83175.0,0.547702]
[1743300932728,0.00488,83176.0,83175.0,0.547702]
[1743300932931,0.004,83176.0,83175.0,0.547702]
[1743300933338,0.1251406,83176.0,83175.0,0.547702]
[1743300933638,0.1241406,83176.0,83175.0,0.547702]
[1743300933838,0.1221406,83176.0,83175.0,0.547702]
[1743300934039,0.1212606,83176.0,83175.0,0.547702]
[1743300934236,0.001,83176.0,83175.0,0.547702]
[1743300934434,0.1221806,83176.0,83175.0,0.547702]
[1743300934836,0.1231806,83176.0,83175.0,0.547702]
[1743300937243,0.1536806,83176.0,83175.0,0.547702]
[1743300940533,0.1526806,83176.0,83175.0,0.547702]
[1743300940735,0.00192,83176.0,83175.0,0.547702]
[1743300940942,0.11766027,83183.0,83182.0,0.1202519]
[1743300941142,0.13360559,83183.0,83182.0,0.1208919]
[1743300941544,0.13360559,83183.0,83182.0,0.1838919]
[1743300942139,0.13360559,83183.0,83182.0,0.5446919]
[1743300942341,0.30732861,83183.0,83182.0,0.5446919]
[1743300942541,0.30832861,83183.0,83182.0,0.5446919]
[1743300942840,0.42857911,83183.0,83182.0,0.5446919]
[1743300943842,0.31109911,83183.0,83182.0,0.5446919]
[1743300944040,0.31309911,83183.0,83182.0,0.5446919]
[1743300944239,0.34509911,83183.0,83182.0,0.5446919]
[1743300945144,0.34609911,83183.0,83182.0,0.5446919]
[1743300945451,0.20257609,83183.0,83182.0,0.5446919]
[1743300945841,0.20057609,83183.0,83182.0,0.5446919]
[1743300946146,0.20357609,83183.0,83182.0,0.5446919]
[1743300947041,0.20357609,83183.0,83182.0,0.1838919]
[1743300947244,0.20357609,83183.0,83182.0,0.5446919]
[1743300956151,0.20357609,83183.0,83182.0,0.1838919]
[1743300956350,0.20357609,83183.0,83182.0,0.5446919]
[1743300958853,0.20357609,83183.0,83182.0,0.1838919]
[1743300959156,0.20357609,83183.0,83182.0,0.5446919]
[1743300960443,0.17991603,83188.0,83187.0,0.1202447]
[1743300960644,0.18071603,83188.0,83187.0,0.1210447]
[1743300960943,0.0012,83188.0,83187.0,0.13300884]
[1743300961147,0.0012,83188.0,83187.0,0.16470884]
[1743300961347,0.0012,83188.0,83187.0,0.19670884]
[1743300961753,0.0052,83188.0,83187.0,0.19670884]
[1743300962256,0.0082,83188.0,83187.0,0.19670884]
[1743300963955,0.1284433,83188.0,83187.0,0.19670884]
[1743300964558,0.1284433,83188.0,83187.0,0.1847447]
[1743300965052,0.27259208,83188.0,83187.0,0.1847447]
[1743300965754,0.30379208,83188.0,83187.0,0.1847447]
[1743300966156,0.18354878,83188.0,83187.0,0.1847447]
[1743300966351,0.15234878,83188.0,83187.0,0.1847447]
[1743300967255,0.15234878,83188.0,83187.0,0.5455447]
[1743300970551,0.0082,83188.0,83187.0,0.5455447]
[1743300972957,0.0074,83188.0,83187.0,0.5455447]
[1743300973267,0.18036625,83196.0,83195.0,0.1202331]
[1743300973462,0.18104625,83196.0,83195.0,0.4817131]
[1743300974162,0.18104625,83196.0,83195.0,0.5449131]
[1743300974366,0.18604625,83196.0,83195.0,0.5449131]
[1743300974561,0.19104625,83196.0,83195.0,0.5449131]
[1743300975857,0.25484625,83196.0,83195.0,0.5449131]
[1743300976558,0.37507795,83196.0,83195.0,0.5449131]
[1743300977066,0.39018327,83196.0,83195.0,0.4817131]
[1743300977469,0.26995157,83196.0,83195.0,0.4817131]
[1743300980557,0.26995157,83196.0,83195.0,0.5118131]
[1743300980763,0.22284625,83196.0,83195.0,0.5118131]
[1743300981161,0.19104625,83196.0,83195.0,0.5118131]
[1743300983872,0.19104625,83196.0,83195.0,0.5433131]
[1743300984474,0.18604625,83196.0,83195.0,0.5433131]
[1743300984674,0.18104625,83196.0,83195.0,0.5443131]
[1743300985375,0.00086027,83196.0,83195.0,0.5433131]
[1743300985575,0.00018027,83196.0,83195.0,0.5433131]
[1743300985869,0.1080036,83202.0,83201.0,0.1202245]
[1743300986074,0.0004,83204.0,83201.0,0.1209045]
[1743300986275,0.0004,83204.0,83202.0,0.0958]
[1743300986472,0.0004,83204.0,83202.0,0.09648]
[1743300986673,0.0004,83204.0,83203.0,0.1202216]
[1743300986971,0.0004,83204.0,83203.0,0.1209816]
[1743300987166,0.0004,83204.0,83203.0,0.1856816]
[1743300987875,0.13672542,83204.0,83203.0,0.1525816]
[1743300988079,0.13740542,83204.0,83203.0,0.1525816]
[1743300988679,0.13840542,83204.0,83203.0,0.1209816]
[1743300989266,0.13940542,83204.0,83203.0,0.1209816]
[1743300990071,0.01918532,83204.0,83203.0,0.1209816]
[1743300991077,0.01918532,83204.0,83203.0,0.1533816]
[1743300991282,0.01818532,83204.0,83203.0,0.1533816]
[1743300991778,0.01718532,83204.0,83203.0,0.1533816]
[1743300992579,0.01718532,83204.0,83203.0,0.1209816]
[1743300992981,0.13740542,83204.0,83203.0,0.00076]
[1743300993168,0.13740542,83204.0,83203.0,0.1209816]
[1743300993578,0.13640542,83204.0,83203.0,0.1209816]
[1743300993871,0.13740542,83204.0,83203.0,0.1209816]
[1743300994066,0.13840542,83204.0,83203.0,0.1209816]
[1743300994473,0.13940542,83204.0,83203.0,0.1209816]
[1743300996280,0.13940542,83204.0,83203.0,0.4817816]
[1743300996582,0.13940542,83204.0,83203.0,0.00076]
[1743300996879,0.1202216,83203.0,83202.0,8e-05]
[1743300997071,0.19740692,83203.0,83202.0,0.120983]
[1743300997874,0.31759417,83203.0,83202.0,0.00076]
[1743300998080,0.31959417,83203.0,83202.0,8e-05]
[1743300998280,0.32059417,83203.0,83202.0,8e-05]
[1743300998681,0.1202302,83197.0,83196.0,0.2404624]
[1743300998874,0.25337552,83197.0,83196.0,0.00068]
[1743300999384,0.37357288,83197.0,83196.0,0.00068]
[1743300999589,0.43547288,83197.0,83196.0,0.00068]
[1743301001389,0.43547288,83197.0,83196.0,0.1209117]
[1743301002476,0.43547288,83197.0,83196.0,0.1513117]
[1743301003983,0.43547288,83197.0,83196.0,0.1209117]
[1743301004891,0.43847288,83197.0,83196.0,0.1209117]
[1743301005592,0.44147288,83197.0,83196.0,0.1209117]
[1743301006381,0.44147288,83197.0,83196.0,0.1541117]
[1743301006777,0.44147288,83197.0,83196.0,0.1848117]
[1743301007086,0.44147288,83197.0,83196.0,0.5456117]
[1743301008494,0.43847288,83197.0,83196.0,0.5456117]
[1743301008802,0.44047288,83197.0,83196.0,0.36148]
[1743301009287,0.43747288,83197.0,83196.0,0.36148]
[1743301009478,0.43947288,83197.0,83196.0,0.36148]
[1743301009685,0.43747288,83197.0,83196.0,0.36148]
[1743301009986,0.43947288,83197.0,83196.0,0.36148]
[1743301010187,0.44047288,83197.0,83196.0,0.36148]
[1743301010385,0.44047288,83197.0,83196.0,0.00068]
[1743301010586,0.1202404,83190.0,83187.0,0.3608]
[1743301010787,0.13534862,83188.0,83187.0,0.36144]
[1743301010988,0.25350862,83188.0,83187.0,0.36144]
[1743301011183,0.25350862,83188.0,83187.0,0.36152]
[1743301011184,0.34820862,83188.0,83187.0,0.36152]
[1743301011386,0.46841754,83188.0,83187.0,0.36144]
[1743301011890,0.48032369,83188.0,83187.0,0.36144]
[1743301013286,0.48132369,83188.0,83187.0,0.36144]
[1743301013995,0.48132369,83188.0,83179.0,0.00018027]
[1743301013996,0.0601265,83182.0,83179.0,0.00018027]
[1743301014292,0.49616012,83180.0,83179.0,0.00018027]
[1743301014485,0.49712013,83180.0,83179.0,0.00018027]
[1743301014690,0.56192013,83180.0,83179.0,0.00018027]
[1743301015085,0.1202678,83171.0,83170.0,0.28677809]
[1743301015389,0.61453312,83171.0,83170.0,0.28749809]
[1743301015788,0.73075504,83171.0,83170.0,0.28749809]
[1743301016489,0.73075504,83171.0,83170.0,0.00272]
[1743301016791,0.73075504,83171.0,83170.0,0.002]
[1743301017599,0.1202736,83167.0,83166.0,8e-05]
[1743301017791,0.50635982,83167.0,83166.0,8e-05]
[1743301018193,0.120278,83164.0,83163.0,0.00048098]
[1743301018393,0.13634333,83164.0,83163.0,0.00048098]
[1743301018695,0.13434333,83164.0,83163.0,0.00048098]
[1743301018893,0.25458405,83164.0,83163.0,0.00048098]
[1743301019096,0.25258405,83164.0,83163.0,0.00116098]
[1743301019297,0.26441534,83164.0,83163.0,0.00116098]
[1743301019496,0.26441534,83164.0,83163.0,0.00416098]
[1743301019696,0.26441534,83164.0,83163.0,0.00716098]
[1743301020595,0.26441534,83164.0,83163.0,0.03778098]
[1743301020999,0.26441534,83164.0,83163.0,0.15806038]
[1743301021202,0.26441534,83164.0,83163.0,0.15874038]
[1743301021396,0.23747873,83164.0,83163.0,0.18944038]
[1743301021601,0.23463801,83164.0,83163.0,0.22174038]
[1743301021904,0.00096001,83164.0,83163.0,0.22174038]
[1743301022295,0.00096001,83164.0,83163.0,0.58254038]
[1743301022605,0.00018027,83172.0,83171.0,0.1202678]
[1743301022802,0.00018027,83172.0,83171.0,0.1209478]
[1743301022803,0.12144667,83172.0,83171.0,0.1209478]
[1743301023002,0.00118027,83172.0,83171.0,0.1209478]
[1743301023397,0.00118027,83172.0,83171.0,0.1855478]
[1743301024694,0.12144667,83172.0,83171.0,0.1855478]
[1743301025298,0.12144667,83172.0,83171.0,0.1865478]
[1743301025898,0.12144667,83172.0,83171.0,0.1875478]
[1743301030111,0.15184667,83172.0,83171.0,0.1875478]
[1743301032812,0.00118027,83172.0,83171.0,0.1875478]
[1743301033911,0.0601205,83190.0,83184.0,0.120249]
[1743301034113,0.36148,83185.0,83184.0,0.121009]
[1743301034904,0.36148,83185.0,83184.0,0.181909]
[1743301035310,0.36348,83185.0,83184.0,0.181909]
[1743301035616,0.00268,83185.0,83184.0,0.181909]
[1743301036115,0.00568,83185.0,83184.0,0.181909]
[1743301037025,0.00268,83185.0,83184.0,0.181909]
[1743301037912,0.00068,83185.0,83184.0,0.183909]
[1743301038921,0.00068,83185.0,83184.0,0.184909]
[1743301039122,0.14382556,83198.0,83192.0,0.1202375]
[1743301039423,0.00086027,83193.0,83192.0,0.1208775]
[1743301039721,0.00018027,83193.0,83192.0,0.1512775]
[1743301040019,0.00018027,83193.0,83192.0,0.1821775]
[1743301040714,0.00118027,83193.0,83192.0,0.1821775]
[1743301045121,0.00118027,83193.0,83192.0,0.5986775]
[1743301045719,0.01628559,83193.0,83192.0,0.5986775]
[1743301046114,0.01628559,83193.0,83192.0,0.5682775]
[1743301046322,0.00194027,83193.0,83192.0,0.5682775]
[1743301046518,0.00118027,83193.0,83192.0,0.6003775]
[1743301048915,0.00186027,83193.0,83192.0,0.6003775]
[1743301050022,0.00118027,83193.0,83192.0,0.6003775]
[1743301050625,0.00186027,83193.0,83192.0,0.6003775]
[1743301051018,0.00118027,83193.0,83192.0,0.6003775]
[1743301052730,0.00194027,83193.0,83192.0,0.6003775]
[1743301052929,0.00118027,83193.0,83192.0,0.6003775]
[1743301054125,0.3612,83204.0,83203.0,0.1202216]
[1743301054430,0.37698532,83204.0,83203.0,0.1208616]
[1743301054815,0.43898532,83204.0,83203.0,0.1208616]
[1743301055017,0.43898532,83204.0,83203.0,0.1866616]
[1743301055626,0.44598532,83204.0,83203.0,0.1866616]
[1743301055932,0.08518532,83204.0,83203.0,0.5474616]
[1743301056323,0.08518532,83204.0,83203.0,0.1866616]
[1743301056927,0.08518532,83204.0,83203.0,0.61507272]
[1743301057132,0.08450532,83204.0,83203.0,0.61507272]
[1743301057533,0.0381,83204.0,83203.0,0.61507272]
[1743301057726,0.00018027,83212.0,83210.0,0.1202115]
[1743301058033,0.00090027,83212.0,83211.0,0.57551]
[1743301058236,0.00090027,83212.0,83211.0,0.57619]
[1743301058237,0.03096027,83212.0,83211.0,0.57619]
[1743301058928,0.03396027,83212.0,83211.0,0.57619]
[1743301059128,0.06516027,83212.0,83211.0,0.57619]
[1743301059327,0.06916027,83212.0,83211.0,0.57619]
[1743301059522,0.07016027,83212.0,83211.0,0.57619]
[1743301059729,0.07016027,83212.0,83211.0,0.54419]
[1743301061226,0.07016027,83212.0,83211.0,0.12089]
[1743301061227,0.20547419,83212.0,83211.0,0.12089]
[1743301067332,0.20547419,83212.0,83211.0,0.00068]
[1743301067537,0.12021,83211.0,83210.0,8e-05]
[1743301067730,0.13599532,83211.0,83210.0,0.1209315]
[1743301067932,0.19949532,83211.0,83210.0,0.1209315]
[1743301068739,0.20349532,83211.0,83210.0,0.1209315]
[1743301069144,0.20349532,83211.0,83210.0,0.00072]
[1743301069343,0.20649532,83211.0,83210.0,0.00072]
[1743301070337,0.20649532,83211.0,83210.0,0.00064]
[1743301070743,0.1202115,83210.0,83209.0,8e-05]
[1743301071038,0.1202115,83210.0,83203.0,0.00026027]
[1743301071039,0.1202201,83204.0,83203.0,0.00026027]
[1743301071244,0.13620543,83204.0,83203.0,0.00026027]
[1743301071842,0.13620543,83204.0,83203.0,0.12047747]
[1743301071843,0.19710543,83204.0,83203.0,0.12047747]
[1743301072039,0.19710543,83204.0,83203.0,0.24133527]
[1743301072436,0.07688533,83204.0,83203.0,0.24133527]
[1743301072635,0.03158001,83204.0,83203.0,0.24133527]
[1743301072939,0.0327,83204.0,83203.0,0.60213527]
[1743301073137,0.3608,83216.0,83203.0,0.48191747]
[1743301073339,0.00114028,83212.0,83211.0,0.12021]
[1743301073646,0.00114028,83212.0,83211.0,0.12085]
[1743301074235,0.00114028,83212.0,83211.0,0.18485]
[1743301074442,0.12334888,83212.0,83211.0,0.18485]
[1743301074642,0.15354888,83212.0,83211.0,0.18485]
[1743301075238,0.03234028,83212.0,83211.0,0.18485]
[1743301075551,0.00214028,83212.0,83211.0,0.18485]
[1743301076368,0.03744028,83212.0,83211.0,0.18485]
[1743301076944,0.03444028,83212.0,83211.0,0.18485]
[1743301077142,0.03444028,83212.0,83211.0,0.18585]
[1743301077543,0.03444028,83212.0,83211.0,0.18485]
[1743301078253,0.03344028,83212.0,83211.0,0.18585]
[1743301079139,0.03344028,83212.0,83211.0,0.18485]
[1743301080850,0.15364888,83212.0,83211.0,0.18485]
[1743301081050,0.1687542,83212.0,83211.0,0.00064]
[1743301081347,0.1202201,83204.0,83203.0,0.12040087]
[1743301081547,0.13532542,83204.0,83203.0,0.12112087]
[1743301081746,0.14807188,83204.0,83203.0,0.12104087]
[1743301082152,0.33095188,83204.0,83203.0,0.12104087]
[1743301082349,0.31908543,83204.0,83203.0,0.12104087]
[1743301082747,0.31908543,83204.0,83203.0,0.12204087]
[1743301082948,0.31908543,83204.0,83203.0,0.00182027]
[1743301083160,0.31908543,83204.0,83203.0,0.12204187]
[1743301083358,0.33114345,83204.0,83203.0,0.12204187]
[1743301084247,0.33114345,83204.0,83203.0,0.12304187]
[1743301085147,0.31908543,83204.0,83203.0,0.12304187]
[1743301087461,0.32108543,83204.0,83203.0,0.12204187]
[1743301088554,0.32108543,83204.0,83203.0,0.12104187]
[1743301088755,0.32408543,83204.0,83203.0,0.12104187]
[1743301089463,0.07148001,83204.0,83203.0,0.12104187]
[1743301089756,0.00588001,83204.0,83203.0,0.12104187]
[1743301089964,0.00288001,83204.0,83203.0,0.18574187]
[1743301090155,0.00388001,83204.0,83203.0,0.18574187]
[1743301091368,0.00388001,83204.0,83203.0,0.18774187]
[1743301091369,0.00288001,83204.0,83203.0,0.18774187]
[1743301091565,0.002,83204.0,83203.0,0.18774187]
[1743301091864,0.14394169,83205.0,83204.0,0.1202201]
[1743301092050,0.14394169,83205.0,83204.0,0.1209001]
[1743301092250,0.14394169,83205.0,83204.0,0.1852001]
[1743301093870,0.14394169,83205.0,83204.0,0.6017001]
[1743301094255,0.14394169,83205.0,83204.0,0.6037001]
[1743301094855,0.14394169,83205.0,83204.0,0.6017001]
[1743301095067,0.14394169,83205.0,83204.0,0.7209801]
[1743301095661,0.0331,83211.0,83210.0,0.1202115]
[1743301095861,0.03406001,83211.0,83210.0,0.4817315]
[1743301096063,0.00018027,83212.0,83211.0,0.12021]
[1743301096257,0.00018027,83212.0,83211.0,0.18435]
[1743301097757,0.00018027,83212.0,83211.0,0.60085]
[1743301108166,0.01528559,83212.0,83211.0,0.60085]
[1743301108469,0.01528559,83212.0,83211.0,0.57035]
[1743301108973,0.01528559,83212.0,83211.0,0.60105]
[1743301112067,0.01528559,83212.0,83211.0,0.57035]
[1743301113979,0.0162456,83212.0,83211.0,0.57035]
[1743301114673,0.0162456,83212.0,83211.0,0.53735]
[1743301114674,0.0807456,83212.0,83211.0,0.53735]
[1743301114876,0.07978559,83212.0,83211.0,0.53735]
[1743301115075,0.0807456,83212.0,83211.0,0.53735]
[1743301115579,0.2009542,83212.0,83211.0,0.41714]
[1743301115874,0.2009542,83212.0,83211.0,0.00064]
[1743301115875,0.21282994,83212.0,83211.0,0.00064]
[1743301116269,0.1202201,83205.0,83204.0,0.1202189]
[1743301116472,0.48190011,83205.0,83204.0,0.1208589]
[1743301116671,0.49700543,83205.0,83204.0,0.1208589]
[1743301117186,0.56050543,83205.0,83204.0,0.1208589]
[1743301117480,0.56050543,83205.0,83204.0,0.1228589]
[1743301117669,0.56050543,83205.0,83204.0,0.1248589]
[1743301120473,0.56050543,83205.0,83204.0,0.1228589]
[1743301120674,0.56050543,83205.0,83204.0,0.1238589]
[1743301120875,0.56050543,83205.0,83204.0,0.1228589]
[1743301121277,0.56050543,83205.0,83204.0,0.002]
[1743301122185,0.56050543,83205.0,83204.0,0.1222201]
[1743301122983,0.56050543,83205.0,83204.0,0.002]
[1743301123287,0.67778543,83205.0,83204.0,0.002]
[1743301125083,0.67778543,83205.0,83204.0,0.1222201]
[1743301125280,0.67778543,83205.0,83204.0,0.1228601]
[1743301126988,0.67778543,83205.0,83204.0,0.1222201]
[1743301127378,0.67778543,83205.0,83204.0,0.1228601]
[1743301128283,0.67778543,83205.0,83204.0,0.1222201]
[1743301129292,0.31698543,83205.0,83204.0,0.1228601]
[1743301129490,0.67778543,83205.0,83204.0,0.1228601]
[1743301133591,0.67778543,83205.0,83204.0,0.1547601]
[1743301135090,0.82159956,83205.0,83204.0,0.1547601]
[1743301135884,0.46079956,83205.0,83204.0,0.1547601]
[1743301136488,0.46079956,83205.0,83204.0,0.1854601]
[1743301142802,0.31698543,83205.0,83204.0,0.1854601]
[1743301143397,0.18460011,83205.0,83204.0,0.1854601]
[1743301143597,0.23838011,83205.0,83204.0,0.1854601]
[1743301144809,0.27108011,83205.0,83204.0,0.1854601]
[1743301145193,0.00088001,83205.0,83204.0,0.1854601]
[1743301146203,0.18018598,83208.0,83207.0,0.1202158]
[1743301146406,0.21541924,83211.0,83210.0,0.1202115]
[1743301146703,0.21641924,83211.0,83210.0,0.1209315]
[1743301147904,0.21541924,83211.0,83210.0,0.1209315]
[1743301148098,0.21541924,83211.0,83210.0,0.1837315]
[1743301149002,0.21641924,83211.0,83210.0,0.1837315]
[1743301150199,0.21641924,83211.0,83210.0,0.6002315]
[1743301150500,0.00192,83211.0,83210.0,0.6002315]
[1743301150710,0.001,83211.0,83210.0,0.6002315]
[1743301151097,0.001,83211.0,83210.0,0.7174715]
[1743301153100,0.001,83211.0,83210.0,0.6002315]
[1743301153405,0.0671,83211.0,83210.0,0.6002315]
[1743301153593,0.18731,83211.0,83210.0,0.6002315]
[1743301153905,0.18819001,83211.0,83210.0,0.6002315]
[1743301154311,0.18731,83211.0,83210.0,0.6002315]
[1743301154495,0.18819001,83211.0,83210.0,0.6002315]
[1743301155202,0.06798001,83211.0,83210.0,0.6002315]
[1743301155904,0.20241532,83211.0,83210.0,0.00072]
[1743301156206,0.20337533,83211.0,83210.0,0.00072]
[1743301157807,0.20337533,83211.0,83210.0,0.1202115]
[1743301158003,0.20337533,83211.0,83210.0,0.1209715]
[1743301160412,0.20337533,83211.0,83210.0,0.00076]
[1743301160708,0.34740195,83211.0,83210.0,0.00076]
[1743301161210,0.1202115,83210.0,83209.0,8e-05]
[1743301161403,0.25255682,83210.0,83209.0,8e-05]
[1743301161595,0.31815682,83210.0,83209.0,8e-05]
[1743301163999,0.7991354,83210.0,83209.0,8e-05]
[1743301164296,0.1202201,83204.0,83203.0,0.12039897]
[1743301164507,0.13532542,83204.0,83203.0,0.00018027]
[1743301165212,0.318204,83204.0,83203.0,0.00018027]
[1743301166002,0.31908401,83204.0,83203.0,0.00018027]
[1743301166406,0.31908401,83204.0,83203.0,0.12040187]
[1743301166721,0.06358001,83204.0,83203.0,0.12040187]
[1743301166905,0.03258001,83204.0,83203.0,0.18712187]
[1743301168312,0.00088001,83204.0,83203.0,0.18712187]
[1743301168510,0.11724,83208.0,83207.0,0.1202158]
[1743301168710,0.23833441,83208.0,83207.0,0.1208558]
[1743301168911,0.18349441,83208.0,83207.0,0.1208558]
[1743301169113,0.18349441,83208.0,83207.0,0.1850558]
[1743301170806,0.06328001,83208.0,83207.0,0.1850558]
[1743301174118,0.18349441,83208.0,83207.0,0.1533558]
[1743301174420,0.18349441,83208.0,83207.0,0.1208558]
[1743301174421,0.19859973,83208.0,83207.0,0.1208558]
[1743301177422,0.34249058,83208.0,83207.0,0.1208558]
[1743301177618,0.70329058,83208.0,83207.0,0.00064]
[1743301177919,0.70329058,83208.0,83206.0,8e-05]
[1743301177920,0.1202158,83207.0,83206.0,8e-05]
[1743301178117,0.31741983,83207.0,83204.0,0.180329]
[1743301178420,0.01510532,83205.0,83204.0,0.180329]
[1743301178609,0.13330533,83205.0,83204.0,0.181049]
[1743301178807,0.13330533,83205.0,83204.0,0.180329]
[1743301179021,0.19430533,83205.0,83204.0,0.180329]
[1743301179323,0.31452403,83205.0,83204.0,0.180969]
[1743301179523,0.31452403,83205.0,83204.0,0.180329]
[1743301179918,0.31452403,83205.0,83204.0,0.181329]
[1743301180814,0.31452403,83205.0,83204.0,0.213529]
[1743301181015,0.31452403,83205.0,83204.0,0.215209]
[1743301181622,0.31452403,83205.0,83204.0,0.245709]
[1743301186326,0.67532403,83205.0,83204.0,0.245709]
[1743301187620,0.00096001,83205.0,83204.0,0.245709]
[1743301188225,0.18082358,83205.0,83204.0,0.245709]
[1743301188431,0.18074358,83205.0,83204.0,0.26102075]
[1743301188619,0.18074358,83205.0,83204.0,0.67752075]
[1743301189022,0.30096228,83205.0,83204.0,0.67752204]
[1743301189417,0.30096228,83205.0,83204.0,0.662209]
[1743301189614,0.3160676,83205.0,83204.0,0.5419894]
[1743301189823,0.3782676,83205.0,83204.0,0.5114894]
[1743301190316,0.3782676,83205.0,83204.0,0.52678464]
[1743301191622,0.4955076,83205.0,83204.0,0.52678464]
[1743301192334,0.31564403,83205.0,83204.0,0.5114894]
[1743301193527,0.31564403,83205.0,83204.0,0.52680268]
[1743301194633,0.31564403,83205.0,83204.0,0.11030268]
[1743301194824,0.31564403,83205.0,83204.0,0.05019328]
[1743301195023,0.31564403,83205.0,83204.0,0.04951328]
[1743301195734,0.31564403,83205.0,83204.0,0.01795328]
[1743301195927,0.31564403,83205.0,83204.0,0.01731328]
[1743301196119,0.31564403,83205.0,83204.0,0.01795328]
[1743301196537,0.31564403,83205.0,83204.0,0.0179943]
[1743301196727,0.31564403,83205.0,83204.0,0.1382144]
[1743301198537,0.67644403,83205.0,83204.0,0.1382144]
[1743301199330,0.67644403,83205.0,83204.0,0.1683144]
[1743301200537,0.73490135,83205.0,83204.0,0.1683144]
[1743301200839,0.73490135,83205.0,83204.0,0.0179943]
[1743301201039,0.73490135,83205.0,83204.0,0.0474543]
[1743301201438,0.37410135,83205.0,83204.0,0.0474543]
[1743301201639,0.73490135,83205.0,83204.0,0.0480943]
[1743301201842,0.73490135,83205.0,83204.0,0.0474543]
[1743301202242,0.73490135,83205.0,83204.0,0.1676744]
[1743301202446,0.73490135,83205.0,83204.0,0.1683944]
[1743301202951,0.73490135,83205.0,83204.0,0.0481743]
[1743301203237,0.73490135,83205.0,83204.0,0.0173543]
[1743301203445,0.73490135,83205.0,83204.0,0.01732017]
[1743301204046,0.73490135,83205.0,83204.0,0.16844027]
[1743301205147,0.73490135,83205.0,83204.0,0.20158027]
[1743301205348,0.73490135,83205.0,83204.0,0.20160872]
[1743301207553,0.73490135,83205.0,83204.0,0.20096872]
[1743301208143,0.73490135,83205.0,83204.0,0.20160872]
[1743301209247,0.61766135,83205.0,83204.0,0.20160407]
[1743301209551,0.42013733,83205.0,83204.0,0.20160407]
[1743301209751,0.05933733,83205.0,83204.0,0.23470407]
[1743301211753,0.05933733,83205.0,83204.0,0.24648144]
[1743301211947,0.05933733,83205.0,83204.0,0.23470407]
[1743301212255,0.05933733,83205.0,83204.0,0.66334899]
[1743301212748,0.17955603,83205.0,83204.0,0.66334899]
[1743301212956,0.17955603,83205.0,83204.0,0.65120407]
[1743301213345,0.17955603,83205.0,83204.0,0.663114]
[1743301213748,0.17955603,83205.0,83204.0,0.65120407]
[1743301214147,0.31190135,83205.0,83204.0,0.49788397]
[1743301214444,0.31190135,83205.0,83204.0,0.58560407]
[1743301214655,0.31190135,83205.0,83204.0,0.46538397]
[1743301215547,0.25344403,83205.0,83204.0,0.46538397]
[1743301217246,0.61424403,83205.0,83204.0,0.58560407]
[1743301218052,0.61424403,83205.0,83204.0,0.16910407]
[1743301219251,0.79434066,83205.0,83204.0,0.20160407]
[1743301220348,0.43354066,83205.0,83204.0,0.20165201]
[1743301222652,0.43354066,83205.0,83204.0,0.08143191]
[1743301222852,0.43354066,83205.0,83204.0,0.08079191]
[1743301223248,0.25344403,83205.0,83204.0,0.08143191]
[1743301223865,0.25344403,83205.0,83204.0,0.20165201]
[1743301224163,0.25344403,83205.0,83204.0,0.20167706]
[1743301226460,0.00088001,83205.0,83204.0,0.20167706]
[1743301226665,0.00088001,83205.0,83204.0,0.23267706]
[1743301227862,0.00088001,83205.0,83204.0,0.23285518]
[1743301228064,0.00088001,83205.0,83204.0,0.24485059]
[1743301229066,0.00088001,83205.0,83204.0,0.23285518]
[1743301231557,0.00088001,83205.0,83204.0,0.24480841]
[1743301233064,0.00088001,83205.0,83204.0,0.23285518]
[1743301234869,0.00088001,83205.0,83204.0,0.2329083]
[1743301235065,0.03358001,83205.0,83204.0,0.2329083]
[1743301235579,0.03358001,83205.0,83204.0,0.23290376]
[1743301237073,0.03358001,83205.0,83204.0,0.20190376]
[1743301237371,0.16890403,83205.0,83204.0,0.01828366]
[1743301237571,0.52970403,83205.0,83204.0,0.01828366]
[1743301238070,0.56300403,83205.0,83204.0,0.01828366]
[1743301238571,0.56300403,83205.0,83204.0,0.13850376]
[1743301238771,0.56300403,83205.0,83204.0,0.01828366]
[1743301239471,0.56300403,83205.0,83204.0,0.13850376]
[1743301241576,0.62146154,83205.0,83204.0,0.13850376]
[1743301242971,0.62146154,83205.0,83204.0,0.01828366]
[1743301243177,0.62146154,83205.0,83204.0,0.01764366]
[1743301243380,0.74164734,83205.0,83204.0,0.13786376]
[1743301243579,0.74164734,83205.0,83204.0,0.13854376]
[1743301245372,0.68318983,83205.0,83204.0,0.13854376]
[1743301245779,0.32238983,83205.0,83204.0,0.13854376]